fUST/lending_fUST_20260606
["ID","MTS","AMOUNT","RATE_DAILY","PERIOD"]
[424243406,1780695041000,-167.93,0.00018013,2]
[424243461,1780695041000,-917.00421763,0.00018736,2]
[424243464,1780695041000,-768.06331103,0.00018737,2]
[424243474,1780695041000,-40629.82627029,0.00019,2]
[424243475,1780695041000,-7910.55850426,0.00019,2]
[424243473,1780695041000,-200.0,0.00018999,2]
[424243472,1780695041000,-416.66666667,0.000189,2]
[424243471,1780695041000,-325.432613,0.000189,2]
[424243468,1780695041000,-150.0,0.0001878,2]
[424243445,1780695041000,-340.536861,0.00018437,2]
[424243465,1780695041000,-951.00184858,0.00018756,2]
[424243470,1780695041000,-825.0,0.00018815,2]
[424243469,1780695041000,-238.19348698,0.000188,2]
[424243466,1780695041000,-444.0,0.0001877,2]
[424243462,1780695041000,-160.0,0.00018737,2]
[424243460,1780695041000,-2143.42799391,0.00018709,2]
[424243459,1780695041000,-182.88,0.000187,2]
[424243467,1780695041000,-185.0,0.0001877,2]
[424243437,1780695041000,-581.57204,0.00018325,2]
[424243463,1780695041000,-160.0,0.00018737,2]
[424243433,1780695041000,-151.0,0.00018283,2]
[424243443,1780695041000,-234.300068,0.00018437,2]
[424243408,1780695041000,-300.0,0.00018067,2]
[424243410,1780695041000,-160.0,0.00018119,2]
[424243411,1780695041000,-404.114237,0.00018119,2]
[424243412,1780695041000,-648.228475,0.00018119,2]
[424243415,1780695041000,-303.86358991,0.00018176,2]
[424243413,1780695041000,-300.0,0.00018137,2]
[424243414,1780695041000,-592.56276994,0.00018162,2]
[424243424,1780695041000,-151.0,0.00018283,2]
[424243427,1780695041000,-151.0,0.00018283,2]
[424243429,1780695041000,-151.0,0.00018283,2]
[424243428,1780695041000,-151.0,0.00018283,2]
[424243416,1780695041000,-4485.60379611,0.00018183,2]
[424243420,1780695041000,-940.89285115,0.00018217,2]
[424243417,1780695041000,-1786.18999492,0.00018184,2]
[424243426,1780695041000,-151.0,0.00018283,2]
[424243418,1780695041000,-1309.730451,0.000182,2]
[424243419,1780695041000,-300.0,0.00018208,2]
[424243435,1780695041000,-151.0,0.00018283,2]
[424243441,1780695041000,-300.0,0.00018419,2]
[424243439,1780695041000,-220.843405,0.00018365,2]
[424243438,1780695041000,-300.0,0.00018348,2]
[424243442,1780695041000,-216.786956,0.00018437,2]
[424243440,1780695041000,-744.561711,0.00018378,2]
[424243434,1780695041000,-151.0,0.00018283,2]
[424243430,1780695041000,-151.0,0.00018283,2]
[424243431,1780695041000,-151.0,0.00018283,2]
[424243432,1780695041000,-151.0,0.00018283,2]
[424243422,1780695041000,-792.50154048,0.0001823,2]
[424243423,1780695041000,-300.0,0.00018278,2]
[424243421,1780695041000,-848.36887741,0.00018217,2]
[424243436,1780695041000,-250.76755352,0.000183,2]
[424243496,1780695042000,-478.6192095,0.00019486,2]
[424243494,1780695042000,-416.66666667,0.000193,2]
[424243497,1780695042000,-2500.66599289,0.00019495,2]
[424243499,1780695042000,-416.66666667,0.000195,2]
[424243498,1780695042000,-1134.90194824,0.000195,2]
[424243500,1780695042000,-1187.71642837,0.00019531,2]
[424243504,1780695042000,-200.0,0.00019999,2]
[424243502,1780695042000,-391.360799,0.00019647,2]
[424243503,1780695042000,-474.31207238,0.00019683,2]
[424243506,1780695042000,-156.61530266,0.0002,2]
[424243508,1780695042000,-588250.8379975,0.0002,2]
[424243507,1780695042000,-150.15290497,0.0002,2]
[424243492,1780695042000,-151.0,0.00019178,2]
[424243501,1780695042000,-300.0,0.00019589,3]
[424243495,1780695042000,-179.80221756,0.00019359,2]
[424243476,1780695042000,-1091.108441,0.00019025,2]
[424243491,1780695042000,-151.0,0.00019178,2]
[424243483,1780695042000,-252.09008,0.00019178,2]
[424243477,1780695042000,-416.66666667,0.000191,2]
[424243485,1780695042000,-252.09008,0.00019178,2]
[424243479,1780695042000,-252.09008,0.00019178,2]
[424243484,1780695042000,-252.09008,0.00019178,2]
[424243478,1780695042000,-300.0,0.00019178,2]
[424243493,1780695042000,-156.0,0.00019248,2]
[424243480,1780695042000,-252.09008,0.00019178,2]
[424243481,1780695042000,-252.09008,0.00019178,2]
[424243486,1780695042000,-252.09008,0.00019178,2]
[424243489,1780695042000,-151.0,0.00019178,2]
[424243490,1780695042000,-151.0,0.00019178,2]
[424243488,1780695042000,-151.0,0.00019178,2]
[424243487,1780695042000,-151.0,0.00019178,2]
[424243482,1780695042000,-252.09008,0.00019178,2]
[424243505,1780695042000,-150.0,0.0002,2]
[424243509,1780695042000,-6086.3,0.0002,2]
[424243519,1780695042000,-252.09008,0.0002,2]
[424243530,1780695042000,-356.584469,0.00020301,2]
[424243532,1780695042000,-262.625593,0.00020301,2]
[424243534,1780695042000,-1000.0,0.00020386,2]
[424243542,1780695042000,-259.4695122,0.000209,2]
[424243543,1780695042000,-200.0,0.00020999,2]
[424243544,1780695042000,-386211.20793533,0.00021,2]
[424243529,1780695042000,-189.601883,0.00020279,2]
[424243535,1780695042000,-222.87265,0.00020431,2]
[424243536,1780695042000,-223.049217,0.00020493,2]
[424243538,1780695042000,-2857.90399188,0.00020676,2]
[424243537,1780695042000,-1405.32019312,0.0002061,2]
[424243539,1780695042000,-852.009419,0.00020693,2]
[424243540,1780695042000,-1404.0392161,0.00020712,2]
[424243541,1780695042000,-363.702813,0.00020837,2]
[424243533,1780695042000,-160.937335,0.00020329,2]
[424243531,1780695042000,-332.232015,0.00020301,2]
[424243518,1780695042000,-252.09008,0.0002,2]
[424243521,1780695042000,-151.0,0.0002,2]
[424243528,1780695042000,-372.280855,0.00020128,2]
[424243510,1780695042000,-300.0,0.0002,5]
[424243511,1780695042000,-320720.85984786,0.0002,2]
[424243512,1780695042000,-252.09008,0.0002,2]
[424243517,1780695042000,-252.09008,0.0002,2]
[424243516,1780695042000,-252.09008,0.0002,2]
[424243514,1780695042000,-252.09008,0.0002,2]
[424243515,1780695042000,-252.09008,0.0002,2]
[424243520,1780695042000,-151.0,0.0002,2]
[424243522,1780695042000,-151.0,0.0002,2]
[424243524,1780695042000,-151.0,0.0002,2]
[424243527,1780695042000,-290.78602,0.0002007,2]
[424243523,1780695042000,-151.0,0.0002,2]
[424243526,1780695042000,-2000.0,0.0002,7]
[424243525,1780695042000,-203.729065,0.0002,2]
[424243513,1780695042000,-252.09008,0.0002,2]
[424243565,1780695043000,-15.28821635,0.00021,2]
[424243564,1780695043000,-187.999236,0.00017103,2]
[424243563,1780695043000,-1653.56249815,0.0001532,2]
[424243572,1780695046000,-1000.0,0.00016647,2]
[424243574,1780695131000,-500.0,0.00013999,2]
[424243595,1780695992000,-4553.48745682,0.00012285,2]
[424243594,1780695992000,-1293.341071,0.00012162,2]
[424243597,1780696025000,-446.51254318,0.00012285,2]
[424243598,1780696025000,-5000.0,0.00012409,2]
[424243599,1780696025000,-418.0,0.00012788,2]
[424243600,1780696025000,-300.0,0.00012788,2]
[424243601,1780696025000,-300.0,0.00012788,2]
[424243603,1780696025000,-73.15951597,0.00012821,7]
[424243602,1780696025000,-300.0,0.00012788,2]
[424243605,1780696037000,-300.0,0.00013043,2]
[424243608,1780696037000,-185.0,0.0001627,2]
[424243610,1780696037000,-30.35412252,0.00017029,2]
[424243609,1780696037000,-501.0405113,0.00016965,2]
[424243606,1780696037000,-195.94815632,0.00013534,2]
[424243607,1780696037000,-165.12334175,0.0001624,2]
[424243604,1780696037000,-288.19986417,0.00012821,7]
[424243612,1780696145000,-1151.14642067,0.00012784,2]
[424243689,1780696232000,-522.1762946,0.00017906,2]
[424243677,1780696232000,-224.9772005,0.00017556,2]
[424243693,1780696232000,-225.07685148,0.00017906,2]
[424243691,1780696232000,-115.70078033,0.00017906,2]
[424243671,1780696232000,-279.9565376,0.00017555,2]
[424243675,1780696232000,-222.72617907,0.00017555,2]
[424243687,1780696232000,-551.22292507,0.00017906,2]
[424243668,1780696232000,-321.99319057,0.00016996,2]
[424243685,1780696232000,-8.69015014,0.00017906,2]
[424243683,1780696232000,-449.95440101,0.00017906,2]
[424243669,1780696232000,-482.98978586,0.00017522,2]
[424243664,1780696232000,-3848.85357933,0.00012784,2]
[424243666,1780696232000,-160.99659529,0.00016208,2]
[424243662,1780696232000,-5000.0,0.00012656,2]
[424243673,1780696232000,-170.3888159,0.00017555,2]
[424243681,1780696232000,-643.98638114,0.00017872,2]
[424243711,1780696232000,-151.0,0.00017917,2]
[424243679,1780696232000,-261.0881473,0.00017556,2]
[424243695,1780696232000,-351.08399913,0.00017907,2]
[424243724,1780696232000,-110.02061129,0.000187,2]
[424243719,1780696232000,-804.98297643,0.00018222,2]
[424243720,1780696232000,-311.116667,0.00018652,2]
[424243705,1780696232000,-151.0,0.00017917,2]
[424243715,1780696232000,-152.0,0.00018095,7]
[424243703,1780696232000,-151.0,0.00017917,2]
[424243722,1780696232000,-182.88000001,0.000187,2]
[424243713,1780696232000,-151.0,0.00017917,2]
[424243697,1780696232000,-154.11667688,0.00017907,2]
[424243709,1780696232000,-151.0,0.00017917,2]
[424243701,1780696232000,-151.0,0.00017917,2]
[424243707,1780696232000,-151.0,0.00017917,2]
[424243717,1780696232000,-600.0,0.00018144,2]
[424243699,1780696232000,-222.73503852,0.00017916,2]
[424243860,1780696238000,-585.99487011,0.00019158,2]
[424243862,1780696238000,-179.82017982,0.00019359,2]
[424243861,1780696238000,-185.0,0.0001927,2]
[424243856,1780696238000,-965.97957171,0.00018747,2]
[424243855,1780696238000,-160.0,0.00018725,2]
[424243853,1780696238000,-98.31272204,0.000187,2]
[424243854,1780696238000,-768.06331103,0.00018725,2]
[424243857,1780696238000,-208.33333333,0.000189,2]
[424243858,1780696238000,-159.614,0.000189,2]
[424243859,1780696238000,-14.00512989,0.00019158,2]
[424243863,1780696238000,-311.116667,0.00019437,2]
[424243864,1780696238000,-1126.976167,0.00019536,2]
[424243866,1780696238000,-6426.4607319,0.00019976,2]
[424243876,1780696238000,-65831.80594181,0.000208,2]
[424243870,1780696238000,-311.116667,0.00020222,2]
[424243869,1780696238000,-500.0,0.0002,2]
[424243868,1780696238000,-295.94485008,0.0002,2]
[424243873,1780696238000,-1287.97276228,0.00020718,2]
[424243871,1780696238000,-1115.17187361,0.00020379,2]
[424243875,1780696238000,-6043.51538676,0.000208,2]
[424243865,1780696238000,-1115.17187363,0.000199,2]
[424243874,1780696238000,-278.05749054,0.00020749,3]
[424243872,1780696238000,-21424.8257812,0.000207,2]
[424243867,1780696238000,-273.96930051,0.0002,2]
[424243882,1780696241000,-291.71377394,0.000208,2]
[424243881,1780696241000,-11.58694013,0.00019158,2]
[424243880,1780696241000,-697.25705987,0.00019158,2]
[424243903,1780696243000,-152.0,0.00018314,7]
[424243904,1780696243000,-313.10777201,0.00020191,2]
[424243905,1780696243000,-184.53984219,0.000208,2]
[424243915,1780696246000,-122258.7111192,0.000208,2]
[424243914,1780696246000,-759.7413399,0.000208,2]
[424243918,1780696292000,15000.0,0.00015,120]
[424243919,1780696296000,778.22839333,0.0001,30]
[424243932,1780697132000,-357.26982633,0.00015012,2]
[424243934,1780697136000,-38.25691949,0.00015164,2]
[424243933,1780697136000,-886.59988752,0.00015012,2]
[424243936,1780697250000,-166.5665996,0.00016042,2]
[424243982,1780697432000,-949.52737905,0.00016042,2]
[424243974,1780697432000,-1580.67792983,0.00016042,2]
[424244064,1780697439000,-356.0,0.00016042,2]
[424244099,1780697444000,-975.91826626,0.00016042,2]
[424244120,1780697447000,-306.64605537,0.000187,2]
[424244122,1780697447000,-160.0,0.00018731,2]
[424244123,1780697447000,-185.0,0.00019226,2]
[424244124,1780697447000,-444.0,0.00019226,2]
[424244118,1780697447000,-152.0,0.00017903,7]
[424244117,1780697447000,-745.66844132,0.00017867,2]
[424244111,1780697447000,-186.41711033,0.00016204,2]
[424244115,1780697447000,-559.25133099,0.00017517,2]
[424244114,1780697447000,-372.83422066,0.00016992,2]
[424244137,1780697447000,-168.39335656,0.00020599,2]
[424244113,1780697447000,-444.0,0.00016226,2]
[424244112,1780697447000,-185.0,0.00016226,2]
[424244110,1780697447000,-1137.87642486,0.00016042,2]
[424244116,1780697447000,-445.45235814,0.00017867,2]
[424244126,1780697447000,-186.67,0.00019858,2]
[424244119,1780697447000,-824.0,0.00018211,2]
[424244125,1780697447000,-179.82017982,0.00019359,2]
[424244140,1780697447000,-500.0,0.00020599,2]
[424244136,1780697447000,-500.0,0.00020599,2]
[424244139,1780697447000,-500.0,0.00020599,2]
[424244141,1780697447000,-500.0,0.00020599,2]
[424244142,1780697447000,-186.70523304,0.00020599,2]
[424244138,1780697447000,-500.0,0.00020599,2]
[424244131,1780697447000,-836.37890526,0.000205,2]
[424244135,1780697447000,-433.02599513,0.00020599,2]
[424244143,1780697447000,-109187.18935638,0.000206,2]
[424244133,1780697447000,-500.0,0.00020599,2]
[424244132,1780697447000,-500.0,0.00020599,2]
[424244127,1780697447000,-178.16097852,0.0002,2]
[424244128,1780697447000,-308.79631286,0.0002,2]
[424244121,1780697447000,-768.06331103,0.00018731,2]
[424244134,1780697447000,-500.0,0.00020599,2]
[424244129,1780697447000,-488.74166287,0.0002,2]
[424244130,1780697447000,-255.90876686,0.00020012,2]
[424244146,1780697782000,161.945897,0.00018695,120]
[424244161,1780698341000,-699.54319815,0.00015948,2]
[424244163,1780698426000,-3007.11573085,0.00015948,2]
[424244164,1780698426000,-100.46620039,0.0001677,2]
[424244162,1780698426000,-245.06776482,0.00015789,2]
[424244165,1780698442000,-84.53379961,0.0001677,2]
[424244166,1780698442000,-444.0,0.0001677,2]
[424244168,1780698442000,-310.69518388,0.00017517,2]
[424244169,1780698442000,-62.59870886,0.00017879,2]
[424244167,1780698442000,-155.34759194,0.00016992,2]
[424244314,1780698646000,-674.5083527,0.00018338,2]
[424244313,1780698646000,-403.44406696,0.00017879,2]
[424244315,1780698646000,-161.945897,0.00018695,2]
[424244316,1780698646000,-768.06331103,0.00018743,2]
[424244318,1780698646000,-179.80221756,0.00019359,2]
[424244322,1780698646000,-9171.02215475,0.0002,2]
[424244319,1780698646000,-159.614,0.0001977,2]
[424244317,1780698646000,-152.0,0.00019077,7]
[424244320,1780698646000,-185.0,0.0001977,2]
[424244321,1780698646000,-444.0,0.0001977,2]
[424244330,1780699205000,162.96,8.001e-05,2]
[424244329,1780699205000,162.96,8.001e-05,2]
[424244332,1780699206000,162.96,8.001e-05,2]
[424244331,1780699206000,162.97,8.001e-05,2]
[424244336,1780699652000,-345.86563727,0.0001569,2]
[424244335,1780699652000,-1488.49872879,0.00015533,2]
[424244339,1780699745000,-636.65466192,0.00015533,2]
[424244340,1780699759000,-744.5465131,0.00015533,2]
[424244424,1780699832000,-160.5669078,0.000174,2]
[424244432,1780699832000,-225.09608701,0.00017879,2]
[424244430,1780699832000,-384.86498293,0.00017879,2]
[424244428,1780699832000,-324.97514696,0.00017529,2]
[424244418,1780699832000,-381.55455423,0.0001705,2]
[424244421,1780699832000,-100.97762367,0.0001705,2]
[424244417,1780699832000,-162.48757348,0.00017003,2]
[424244422,1780699832000,-191.0,0.0001717,2]
[424244415,1780699832000,-249.97448044,0.00016533,2]
[424244410,1780699832000,-291.20015593,0.00015533,2]
[424244435,1780699832000,-487.46272044,0.00017879,2]
[424244413,1780699832000,-300.0,0.00016475,7]
[424244426,1780699832000,-192.43249146,0.00017529,2]
[424244437,1780699832000,-976.42822437,0.00017879,2]
[424244434,1780699832000,-209.01117433,0.00017879,2]
[424244441,1780699832000,-165.12334175,0.00017889,2]
[424244439,1780699832000,-167.93612936,0.00017887,2]
[424244458,1780699832000,-500.0,0.00018999,2]
[424244456,1780699832000,-269.11849364,0.00018999,2]
[424244457,1780699832000,-230.88150636,0.00018999,2]
[424244454,1780699832000,-500.0,0.00018999,2]
[424244446,1780699832000,-152.0,0.00018494,7]
[424244455,1780699832000,-500.0,0.00018999,2]
[424244447,1780699832000,-160.0,0.00018717,2]
[424244453,1780699832000,-288.19986417,0.00018874,7]
[424244449,1780699832000,-1399.4015528,0.00018789,2]
[424244451,1780699832000,-502.9741034,0.00018789,2]
[424244444,1780699832000,-320.36907158,0.00018474,2]
[424244443,1780699832000,-152.0,0.00018406,7]
[424244452,1780699832000,-186.67,0.00018861,2]
[424244463,1780699833000,-500.0,0.00018999,2]
[424244467,1780699833000,-235.95560809,0.00018999,2]
[424244466,1780699833000,-500.0,0.00018999,2]
[424244465,1780699833000,-500.0,0.00018999,2]
[424244468,1780699833000,-372.3503575,0.00018999,2]
[424244469,1780699833000,-242.96724812,0.00018999,2]
[424244464,1780699833000,-500.0,0.00018999,2]
[424244472,1780699833000,-353.11819659,0.00018999,2]
[424244459,1780699833000,-500.0,0.00018999,2]
[424244462,1780699833000,-500.0,0.00018999,2]
[424244460,1780699833000,-500.0,0.00018999,2]
[424244470,1780699833000,-500.0,0.00018999,2]
[424244471,1780699833000,-500.0,0.00018999,2]
[424244473,1780699833000,-2438.03708334,0.00019,2]
[424244461,1780699833000,-575.0,0.00018999,2]
[424244482,1780699838000,-190.652,0.0001916,2]
[424244492,1780699838000,-117305.5242996,0.0002,2]
[424244483,1780699838000,-179.80221756,0.00019359,2]
[424244481,1780699838000,-116833.52684345,0.00019,2]
[424244484,1780699838000,-330.15863885,0.00019377,2]
[424244493,1780699838000,-68060.4321222,0.0002,2]
[424244490,1780699838000,-773.69,0.000199,2]
[424244487,1780699838000,-158.04322122,0.00019712,2]
[424244485,1780699838000,-600.0,0.00019378,2]
[424244494,1780699838000,-5379.62211838,0.0002,2]
[424244491,1780699838000,-312.24,0.00019999,2]
[424244488,1780699838000,-768.06331103,0.00019793,2]
[424244486,1780699838000,-289.17798698,0.00019446,2]
[424244489,1780699838000,-487.0,0.000199,2]
[424244752,1780699846000,-2656.02754636,0.0002,2]
[424244761,1780700742000,-357.26982633,0.0001368,2]
[424244763,1780700744000,-821.33835297,0.00013818,2]
[424244762,1780700744000,-80.98709316,0.0001368,2]
[424244765,1780700842000,-333.34637625,0.00013408,2]
[424244766,1780700866000,-482.67385152,0.00013408,2]
[424244771,1780700964000,-485.85622176,0.00013543,2]
[424244769,1780700964000,-47.59946474,0.00013408,2]
[424244770,1780700964000,-166.5665996,0.00013408,2]
[424244815,1780701032000,-200.0,0.000187,2]
[424244817,1780701032000,-200.0,0.000189,2]
[424244813,1780701032000,-160.0,0.00018686,2]
[424244802,1780701032000,-584.56016685,0.000169,2]
[424244800,1780701032000,-210.60447714,0.00015433,2]
[424244804,1780701032000,-459.022,0.00016972,2]
[424244798,1780701032000,-174.9821363,0.00014408,2]
[424244809,1780701032000,-1413.0,0.0001717,2]
[424244796,1780701032000,-5000.0,0.00013408,2]
[424244807,1780701032000,-185.0,0.00016972,2]
[424244811,1780701032000,-501.0405113,0.00017449,2]
[424244823,1780701032000,-500.0,0.00018999,3]
[424244821,1780701032000,-500.0,0.00018999,2]
[424244825,1780701032000,-500.0,0.00018999,4]
[424244844,1780701032000,-1151.66394724,0.00019,2]
[424244831,1780701032000,-500.0,0.00018999,7]
[424244834,1780701032000,-672.74827724,0.00019,2]
[424244832,1780701032000,-210.23383664,0.00019,2]
[424244829,1780701032000,-500.0,0.00018999,6]
[424244842,1780701032000,-4073.23747022,0.00019,2]
[424244839,1780701032000,-311.82392788,0.00019,2]
[424244836,1780701032000,-17129.86248754,0.00019,2]
[424244827,1780701032000,-500.0,0.00018999,5]
[424244819,1780701032000,-768.06331103,0.00018997,2]
[424244833,1780701032000,-378.42090595,0.00019,2]
[424244969,1780701043000,-436.99149115,0.00018999,2]
[424244965,1780701043000,-500.0,0.00018999,2]
[424244971,1780701043000,-1384.4299745,0.00019195,2]
[424244967,1780701043000,-500.0,0.00018999,2]
[424244964,1780701043000,-425.0,0.00018999,2]
[424244963,1780701043000,-500.0,0.00018999,2]
[424244962,1780701043000,-500.0,0.00018999,2]
[424244961,1780701043000,-500.0,0.00018999,2]
[424244960,1780701043000,-202.69265703,0.00018999,2]
[424244955,1780701043000,-500.0,0.00018999,2]
[424244966,1780701043000,-500.0,0.00018999,2]
[424244958,1780701043000,-283.31663006,0.00018999,2]
[424244957,1780701043000,-500.0,0.00018999,2]
[424244956,1780701043000,-500.0,0.00018999,2]
[424244954,1780701043000,-500.0,0.00018999,2]
[424244952,1780701043000,-4.3037064,0.00018999,2]
[424244953,1780701043000,-227.69723512,0.00018999,2]
[424244968,1780701043000,-500.0,0.00018999,2]
[424244959,1780701043000,-500.0,0.00018999,2]
[424244970,1780701043000,-126005.69667991,0.00019,2]
[424244973,1780701043000,-260.97703785,0.00019359,2]
[424244972,1780701043000,-1050.118014,0.00019295,2]
[424244978,1780701043000,-1509931.34828098,0.000198,2]
[424244992,1780701043000,-500.0,0.00019899,20]
[424244991,1780701043000,-500.0,0.00019899,19]
[424244984,1780701043000,-500.0,0.00019899,12]
[424244985,1780701043000,-500.0,0.00019899,13]
[424244987,1780701043000,-500.0,0.00019899,15]
[424244986,1780701043000,-500.0,0.00019899,14]
[424244981,1780701043000,-500.0,0.00019899,9]
[424244982,1780701043000,-500.0,0.00019899,10]
[424244983,1780701043000,-500.0,0.00019899,11]
[424244989,1780701043000,-500.0,0.00019899,17]
[424244990,1780701043000,-500.0,0.00019899,18]
[424244980,1780701043000,-500.0,0.00019899,8]
[424244988,1780701043000,-500.0,0.00019899,16]
[424244975,1780701043000,-265.93240696,0.00019765,2]
[424244974,1780701043000,-1753.8918521,0.00019571,2]
[424244976,1780701043000,-1384.42997445,0.00019777,2]
[424244977,1780701043000,-200.0,0.00019799,2]
[424244979,1780701043000,-308.16,0.000198,2]
[424245033,1780701044000,-1490.12663909,0.0002065,2]
[424245031,1780701044000,-1081.146797,0.000206,2]
[424245029,1780701044000,-766.4188295,0.0002058,2]
[424245032,1780701044000,-271.6099529,0.00020629,2]
[424245039,1780701044000,-1384.42997445,0.00020942,2]
[424245040,1780701044000,-253.16,0.0002099,3]
[424245022,1780701044000,-2000.0,0.0002,7]
[424245024,1780701044000,-151.0,0.0002,2]
[424245023,1780701044000,-215.72330054,0.0002,2]
[424245025,1780701044000,-186.67,0.00020129,2]
[424245035,1780701044000,-253.360315,0.0002065,2]
[424245018,1780701044000,-1000.0,0.0002,2]
[424245030,1780701044000,-202.085792,0.000206,2]
[424245034,1780701044000,-151.0,0.0002065,2]
[424245045,1780701044000,-151.0,0.00021,2]
[424245037,1780701044000,-4635.54689188,0.000209,2]
[424245036,1780701044000,-300.0,0.00020822,6]
[424245041,1780701044000,-280.66192662,0.00021,2]
[424245042,1780701044000,-46068.83490268,0.00021,2]
[424245043,1780701044000,-50000.0,0.00021,2]
[424245049,1780701044000,-1384.42997445,0.00021525,2]
[424245050,1780701044000,-169.35745743,0.00021684,30]
[424245044,1780701044000,-151.0,0.00021,2]
[424245052,1780701044000,-156.82928338,0.00021918,2]
[424245053,1780701044000,-313.65856675,0.00021918,2]
[424245047,1780701044000,-1052.13381894,0.000215,2]
[424245048,1780701044000,-13018.6164096,0.000215,2]
[424245020,1780701044000,-1000.0,0.0002,2]
[424245038,1780701044000,-151.0,0.000209,2]
[424245026,1780701044000,-1384.42997445,0.0002036,2]
[424245072,1780701044000,-801.59439217,0.00022269,2]
[424245027,1780701044000,-600.0,0.00020399,2]
[424245051,1780701044000,-400.0,0.000218,2]
[424244996,1780701044000,-245.144,0.00019899,2]
[424244993,1780701044000,-500.0,0.00019899,21]
[424244994,1780701044000,-500.0,0.00019899,21]
[424244998,1780701044000,-444.0,0.00019972,2]
[424244999,1780701044000,-185.0,0.00019972,2]
[424245002,1780701044000,-167.92516529,0.0002,2]
[424244995,1780701044000,-177.83551805,0.00019899,21]
[424245000,1780701044000,-202.08797392,0.00019999,2]
[424245001,1780701044000,-74579.57222921,0.0002,2]
[424244997,1780701044000,-756.6,0.000199,2]
[424245004,1780701044000,-1000.0,0.0002,2]
[424245014,1780701044000,-1000.0,0.0002,2]
[424245019,1780701044000,-1000.0,0.0002,2]
[424245003,1780701044000,-300.0,0.0002,4]
[424245011,1780701044000,-1000.0,0.0002,2]
[424245005,1780701044000,-1000.0,0.0002,2]
[424245006,1780701044000,-1000.0,0.0002,2]
[424245007,1780701044000,-1000.0,0.0002,2]
[424245008,1780701044000,-1000.0,0.0002,2]
[424245009,1780701044000,-1000.0,0.0002,2]
[424245013,1780701044000,-1000.0,0.0002,2]
[424245010,1780701044000,-1000.0,0.0002,2]
[424245012,1780701044000,-1000.0,0.0002,2]
[424245016,1780701044000,-1000.0,0.0002,2]
[424245017,1780701044000,-1000.0,0.0002,2]
[424245021,1780701044000,-491.65099011,0.0002,2]
[424245028,1780701044000,-825.0,0.0002044,2]
[424245015,1780701044000,-1000.0,0.0002,2]
[424245046,1780701044000,-151.0,0.00021,2]
[424245079,1780701044000,-5000.0,0.00022489,2]
[424245054,1780701044000,-470.48785013,0.00021918,2]
[424245089,1780701044000,-5000.0,0.00022598,2]
[424245088,1780701044000,-5000.0,0.00022598,2]
[424245087,1780701044000,-5000.0,0.00022598,2]
[424245093,1780701044000,-288.15,0.00022748,2]
[424245094,1780701044000,-955.7696344,0.00022795,2]
[424245103,1780701044000,-177.95,0.00023062,7]
[424245056,1780701044000,-318.58987813,0.00021918,2]
[424245092,1780701044000,-151.9042254,0.00022668,2]
[424245104,1780701044000,-1709.995238,0.0002308,5]
[424245096,1780701044000,-444.0,0.00022972,2]
[424245101,1780701044000,-336.71,0.00023044,7]
[424245100,1780701044000,-187.327401,0.00023035,7]
[424245102,1780701044000,-228.75700502,0.00023048,7]
[424245086,1780701044000,-5000.0,0.00022548,2]
[424245097,1780701044000,-185.0,0.00022972,2]
[424245099,1780701044000,-577.0,0.00023,7]
[424245106,1780701044000,-202.13081118,0.00023094,7]
[424245105,1780701044000,-336.71,0.00023094,7]
[424245107,1780701044000,-401.14,0.00023096,7]
[424245116,1780701044000,-1000.0,0.0002316,5]
[424245108,1780701044000,-205.68,0.000231,2]